[Event "*** Titled Tuesday Blitz"]
[Site "Chess.com"]
[Date "2020.05.05"]
[Round "10"]
[White "swimmerchess"]
[Black "Gyapiking"]
[Result "1-0"]
[WhiteElo "2732"]
[BlackElo "2502"]
[TimeControl "180+1"]
[EndTime "11:57:24 PDT"]
[Termination "swimmerchess won by resignation"]

1. e4 {[%clk 0:03:00.9]} 1... Nc6 {[%clk 0:02:59.7]} 2. Nf3 {[%clk 0:03:00.2]}
2... e5 {[%clk 0:02:58.8]} 3. Bb5 {[%clk 0:02:59.9]} 3... a6 {[%clk 0:02:57]} 4.
Ba4 {[%clk 0:03:00.1]} 4... d6 {[%clk 0:02:57.1]} 5. O-O {[%clk 0:02:59.8]} 5...
Bg4 {[%clk 0:02:57]} 6. c3 {[%clk 0:02:57.5]} 6... Qf6 {[%clk 0:02:55.4]} 7. d4
{[%clk 0:02:44.6]} 7... Bxf3 {[%clk 0:02:51.1]} 8. Qxf3 {[%clk 0:02:42.6]} 8...
Qxf3 {[%clk 0:02:50.3]} 9. gxf3 {[%clk 0:02:43.5]} 9... b5 {[%clk 0:02:49.4]}
10. Bb3 {[%clk 0:02:39]} 10... exd4 {[%clk 0:02:49.3]} 11. a4 {[%clk 0:02:39]}
11... Rb8 {[%clk 0:02:47.2]} 12. axb5 {[%clk 0:02:38.9]} 12... axb5 {[%clk
0:02:46.8]} 13. Ra6 {[%clk 0:02:29.3]} 13... Nge7 {[%clk 0:02:34.1]} 14. Bd5
{[%clk 0:02:28.6]} 14... Nxd5 {[%clk 0:02:32.3]} 15. Rxc6 {[%clk 0:02:28.3]}
15... Nf6 {[%clk 0:02:24]} 16. Rxc7 {[%clk 0:02:28]} 16... dxc3 {[%clk
0:02:19.1]} 17. Nxc3 {[%clk 0:02:28.9]} 17... Be7 {[%clk 0:02:18.7]} 18. Bg5
{[%clk 0:02:26.7]} 18... Bd8 {[%clk 0:02:17.9]} 19. Rc6 {[%clk 0:02:24.6]} 19...
b4 {[%clk 0:02:10.7]} 20. Ne2 {[%clk 0:02:24.3]} 20... Rb6 {[%clk 0:01:54.9]}
21. Rfc1 {[%clk 0:02:13.9]} 21... O-O {[%clk 0:01:52.9]} 22. Rxb6 {[%clk
0:02:10.6]} 22... Bxb6 {[%clk 0:01:52.8]} 23. Bxf6 {[%clk 0:02:11.2]} 23... gxf6
{[%clk 0:01:52.2]} 24. Rc6 {[%clk 0:02:10]} 24... Bc5 {[%clk 0:01:52.2]} 25. Nf4
{[%clk 0:02:09.9]} 25... Ra8 {[%clk 0:01:50.8]} 26. Nd3 {[%clk 0:01:58.2]} 26...
Ra1+ {[%clk 0:01:48.4]} 27. Kg2 {[%clk 0:01:57.4]} 27... Rb1 {[%clk 0:01:38.7]}
28. Kg3 {[%clk 0:01:45.3]} 28... Bd4 {[%clk 0:01:38.2]} 29. Rxd6 {[%clk
0:01:34.6]} 29... Bxb2 {[%clk 0:01:37.4]} 30. Nxb2 {[%clk 0:01:34.2]} 30... Rxb2
{[%clk 0:01:37.3]} 31. Rxf6 {[%clk 0:01:34.9]} 31... Rb1 {[%clk 0:01:35.8]} 32.
Rb6 {[%clk 0:01:34.2]} 32... b3 {[%clk 0:01:35.9]} 33. Kf4 {[%clk 0:01:32.7]}
33... Kg7 {[%clk 0:01:35.4]} 34. h4 {[%clk 0:01:31.3]} 34... h6 {[%clk
0:01:33.4]} 35. Kf5 {[%clk 0:01:27.4]} 35... b2 {[%clk 0:01:30.7]} 36. f4 {[%clk
0:01:25.8]} 36... Rh1 {[%clk 0:01:23.9]} 37. Rxb2 {[%clk 0:01:24.7]} 37... Rxh4
{[%clk 0:01:23.9]} 38. e5 {[%clk 0:01:23.5]} 38... Rh2 {[%clk 0:01:22.5]} 39.
Rb7 {[%clk 0:01:21.3]} 39... Rxf2 {[%clk 0:01:21.4]} 40. e6 {[%clk 0:01:20.3]}
40... h5 {[%clk 0:01:20.1]} 41. Rxf7+ {[%clk 0:01:17.9]} 41... Kg8 {[%clk
0:01:20.1]} 42. Kg6 {[%clk 0:01:14.8]} 42... h4 {[%clk 0:01:18.2]} 43. e7 {[%clk
0:01:14]} 43... Rg2+ {[%clk 0:01:17.7]} 44. Kf6 {[%clk 0:01:13.7]} 44... Re2
{[%clk 0:01:15.3]} 45. Rf8+ {[%clk 0:01:13.9]} 45... Kh7 {[%clk 0:01:14.8]} 46.
e8=Q {[%clk 0:01:14.8]} 1-0

[Event "*** Titled Tuesday Blitz"]
[Site "Chess.com"]
[Date "2020.05.05"]
[Round "10"]
[White "Camels1981"]
[Black "IriBu"]
[Result "1-0"]
[WhiteElo "2276"]
[BlackElo "2437"]
[TimeControl "180+1"]
[EndTime "11:57:25 PDT"]
[Termination "Camels1981 won by resignation"]

1. e4 {[%clk 0:02:59.3]} 1... c5 {[%clk 0:02:59.5]} 2. Nf3 {[%clk 0:02:58.1]}
2... a6 {[%clk 0:02:59.8]} 3. Nc3 {[%clk 0:02:56.8]} 3... d6 {[%clk 0:02:58.8]}
4. d4 {[%clk 0:02:56.4]} 4... cxd4 {[%clk 0:02:59.7]} 5. Nxd4 {[%clk 0:02:57]}
5... Nf6 {[%clk 0:03:00.3]} 6. Bc4 {[%clk 0:02:55.9]} 6... e6 {[%clk 0:03:00.2]}
7. Bb3 {[%clk 0:02:55.7]} 7... Nbd7 {[%clk 0:02:59.5]} 8. O-O {[%clk 0:02:55.6]}
8... Nc5 {[%clk 0:02:59.1]} 9. f4 {[%clk 0:02:56.2]} 9... Ke7 {[%clk 0:02:58.8]}
10. e5 {[%clk 0:02:50.7]} 10... Ne8 {[%clk 0:02:51.9]} 11. f5 {[%clk 0:02:45.9]}
11... dxe5 {[%clk 0:02:49.8]} 12. Qf3 {[%clk 0:01:47.1]} 12... exd4 {[%clk
0:02:41.4]} 13. fxe6 {[%clk 0:01:42.6]} 13... Bxe6 {[%clk 0:02:27.1]} 14. Bxe6
{[%clk 0:01:41.4]} 14... fxe6 {[%clk 0:02:26.3]} 15. Bg5+ {[%clk 0:01:32.6]}
15... Nf6 {[%clk 0:02:25.6]} 16. Bxf6+ {[%clk 0:01:32.3]} 16... gxf6 {[%clk
0:02:26.4]} 17. Qxf6+ {[%clk 0:01:32.7]} 17... Kd7 {[%clk 0:02:19.1]} 18. Qxh8
{[%clk 0:01:33.6]} 18... dxc3 {[%clk 0:02:14.6]} 19. Rad1+ {[%clk 0:01:27.2]}
19... Bd6 {[%clk 0:02:14]} 20. Qxc3 {[%clk 0:01:27.8]} 20... Qb6 {[%clk
0:01:52.3]} 21. Rf7+ {[%clk 0:01:21.3]} 21... Ke8 {[%clk 0:01:49.5]} 22. Qg7
{[%clk 0:01:06.3]} 22... Ne4+ {[%clk 0:01:35.5]} 23. Kf1 {[%clk 0:01:05.4]}
23... Qb5+ {[%clk 0:01:22.9]} 24. Ke1 {[%clk 0:01:03.8]} 24... Qc5 {[%clk
0:01:04.5]} 25. Rf8+ {[%clk 0:00:38.5]} 1-0

[Event "*** Titled Tuesday Blitz"]
[Site "Chess.com"]
[Date "2020.05.05"]
[Round "10"]
[White "Sven_Tica"]
[Black "Natalya_Buksa"]
[Result "0-1"]
[WhiteElo "2677"]
[BlackElo "2509"]
[TimeControl "180+1"]
[EndTime "11:57:26 PDT"]
[Termination "Natalya_Buksa won by resignation"]

1. d4 {[%clk 0:03:00.9]} 1... d5 {[%clk 0:02:56.7]} 2. c4 {[%clk 0:02:57.5]}
2... e6 {[%clk 0:02:56.6]} 3. Nf3 {[%clk 0:02:56.3]} 3... Nf6 {[%clk 0:02:56]}
4. g3 {[%clk 0:02:53.9]} 4... Bb4+ {[%clk 0:02:56.2]} 5. Bd2 {[%clk 0:02:53.4]}
5... Be7 {[%clk 0:02:56.3]} 6. Bg2 {[%clk 0:02:52.7]} 6... O-O {[%clk
0:02:56.6]} 7. O-O {[%clk 0:02:52.4]} 7... c6 {[%clk 0:02:50]} 8. Qc2 {[%clk
0:02:49.5]} 8... Nbd7 {[%clk 0:02:50.3]} 9. Bf4 {[%clk 0:02:50]} 9... a5 {[%clk
0:02:50]} 10. a4 {[%clk 0:02:46.6]} 10... Nb8 {[%clk 0:02:47.5]} 11. Rd1 {[%clk
0:02:43.1]} 11... Na6 {[%clk 0:02:47.7]} 12. b3 {[%clk 0:02:40.1]} 12... Nb4
{[%clk 0:02:48]} 13. Qb2 {[%clk 0:02:40.4]} 13... b6 {[%clk 0:02:46.2]} 14. Ne5
{[%clk 0:02:39.1]} 14... Ba6 {[%clk 0:02:45.4]} 15. Nc3 {[%clk 0:02:39]} 15...
Rc8 {[%clk 0:02:44.4]} 16. Rac1 {[%clk 0:02:37.5]} 16... Nd7 {[%clk 0:02:42.1]}
17. e4 {[%clk 0:02:29.5]} 17... Nxe5 {[%clk 0:02:40.3]} 18. Bxe5 {[%clk
0:02:20.4]} 18... dxc4 {[%clk 0:02:35.4]} 19. d5 {[%clk 0:02:21]} 19... Nd3
{[%clk 0:02:33.1]} 20. Rxd3 {[%clk 0:02:18.9]} 20... cxd3 {[%clk 0:02:34]} 21.
dxe6 {[%clk 0:02:19.4]} 21... f6 {[%clk 0:02:31.9]} 22. Bf4 {[%clk 0:02:17.9]}
22... Bb4 {[%clk 0:02:15.8]} 23. Bh3 {[%clk 0:02:14.2]} 23... Qe7 {[%clk
0:02:13.9]} 24. Nd1 {[%clk 0:02:11]} 24... Ba3 {[%clk 0:02:07.3]} 25. Qb1 {[%clk
0:02:09.4]} 25... Bxc1 {[%clk 0:02:07]} 26. Qxc1 {[%clk 0:02:10.3]} 26... Rfd8
{[%clk 0:02:04.2]} 27. Qd2 {[%clk 0:02:09.4]} 27... Rd4 {[%clk 0:01:58.7]} 28.
Be3 {[%clk 0:02:03.4]} 28... Rxe4 {[%clk 0:01:57.5]} 29. Bxb6 {[%clk 0:02:04]}
29... Rb8 {[%clk 0:01:14.8]} 30. Qxa5 {[%clk 0:01:50.6]} 30... Bc8 {[%clk
0:01:10.2]} 31. Bc5 {[%clk 0:01:46.5]} 31... Qe8 {[%clk 0:01:05.7]} 32. Bf5
{[%clk 0:01:39]} 32... Rxe6 {[%clk 0:00:58.3]} 33. Bxe6+ {[%clk 0:01:38.4]}
33... Bxe6 {[%clk 0:00:59.2]} 34. b4 {[%clk 0:01:38.8]} 34... Bd5 {[%clk
0:00:53.1]} 35. Ne3 {[%clk 0:01:38.4]} 35... Qe4 {[%clk 0:00:43]} 36. Nxd5
{[%clk 0:01:38]} 36... Qxd5 {[%clk 0:00:43.9]} 37. Qc7 {[%clk 0:01:33.9]} 37...
Re8 {[%clk 0:00:43.9]} 38. Be3 {[%clk 0:01:27.1]} 38... d2 {[%clk 0:00:44.1]}
0-1

[Event "*** Titled Tuesday Blitz"]
[Site "Chess.com"]
[Date "2020.05.05"]
[Round "10"]
[White "DortmundCity"]
[Black "vanea_03"]
[Result "1-0"]
[WhiteElo "2474"]
[BlackElo "2640"]
[TimeControl "180+1"]
[EndTime "11:57:27 PDT"]
[Termination "DortmundCity won by resignation"]

1. e4 {[%clk 0:02:55.2]} 1... e5 {[%clk 0:02:59.8]} 2. Nf3 {[%clk 0:02:54.9]}
2... Nc6 {[%clk 0:03:00.1]} 3. Bc4 {[%clk 0:02:55.5]} 3... Nf6 {[%clk
0:02:59.4]} 4. d3 {[%clk 0:02:52]} 4... Bc5 {[%clk 0:02:59.1]} 5. c3 {[%clk
0:02:51.3]} 5... a6 {[%clk 0:02:57.5]} 6. O-O {[%clk 0:02:51]} 6... d6 {[%clk
0:02:56.1]} 7. a4 {[%clk 0:02:51.2]} 7... Ba7 {[%clk 0:02:55.4]} 8. h3 {[%clk
0:02:49.5]} 8... O-O {[%clk 0:02:55.4]} 9. Re1 {[%clk 0:02:49.8]} 9... h6 {[%clk
0:02:55.3]} 10. Nbd2 {[%clk 0:02:49.9]} 10... Re8 {[%clk 0:02:55.6]} 11. Nf1
{[%clk 0:02:50.4]} 11... Be6 {[%clk 0:02:55.9]} 12. Bxe6 {[%clk 0:02:14.3]}
12... Rxe6 {[%clk 0:02:56.8]} 13. Be3 {[%clk 0:02:15.2]} 13... d5 {[%clk
0:02:46.9]} 14. Bxa7 {[%clk 0:02:10.8]} 14... Rxa7 {[%clk 0:02:47.8]} 15. exd5
{[%clk 0:02:05.9]} 15... Nxd5 {[%clk 0:02:46.2]} 16. d4 {[%clk 0:02:04.9]} 16...
e4 {[%clk 0:02:42.3]} 17. N3d2 {[%clk 0:02:04.3]} 17... f5 {[%clk 0:02:21.3]}
18. Qb3 {[%clk 0:02:03.1]} 18... Kh8 {[%clk 0:02:15.4]} 19. a5 {[%clk
0:02:00.1]} 19... Rg6 {[%clk 0:02:05.2]} 20. Ng3 {[%clk 0:01:39.5]} 20... Nf4
{[%clk 0:02:01.3]} 21. Qf7 {[%clk 0:01:15.5]} 21... Ne7 {[%clk 0:01:52]} 22.
Ndxe4 {[%clk 0:01:11.4]} 22... Nd3 {[%clk 0:01:46.1]} 23. Nc5 {[%clk 0:01:05.7]}
23... Nxe1 {[%clk 0:01:38.6]} 24. Rxe1 {[%clk 0:01:06.6]} 24... Ra8 {[%clk
0:01:06.6]} 25. Rxe7 {[%clk 0:01:05.2]} 25... Rg5 {[%clk 0:01:02]} 26. Nxf5
{[%clk 0:01:01]} 26... Qf8 {[%clk 0:00:55.1]} 27. Nxh6 {[%clk 0:00:55]} 1-0

[Event "*** Titled Tuesday Blitz"]
[Site "Chess.com"]
[Date "2020.05.05"]
[Round "10"]
[White "IMRosen"]
[Black "Orest_Vovk"]
[Result "1-0"]
[WhiteElo "2562"]
[BlackElo "2427"]
[TimeControl "180+1"]
[EndTime "11:57:28 PDT"]
[Termination "IMRosen won by resignation"]

1. d4 {[%clk 0:03:00.9]} 1... Nf6 {[%clk 0:02:56.6]} 2. Bf4 {[%clk 0:03:01.2]}
2... d6 {[%clk 0:02:53.9]} 3. Nc3 {[%clk 0:03:01.2]} 3... Nbd7 {[%clk
0:02:52.9]} 4. Nf3 {[%clk 0:03:01.5]} 4... g6 {[%clk 0:02:51.7]} 5. Qd2 {[%clk
0:02:59.5]} 5... Bg7 {[%clk 0:02:51.7]} 6. Bh6 {[%clk 0:03:00.1]} 6... O-O
{[%clk 0:02:50.9]} 7. e4 {[%clk 0:02:56.3]} 7... c5 {[%clk 0:02:43.9]} 8. Bxg7
{[%clk 0:02:37.5]} 8... Kxg7 {[%clk 0:02:42.9]} 9. e5 {[%clk 0:02:38.3]} 9...
Ne8 {[%clk 0:02:39.8]} 10. exd6 {[%clk 0:02:29.2]} 10... exd6 {[%clk 0:02:39.1]}
11. O-O-O {[%clk 0:02:25.7]} 11... Nef6 {[%clk 0:02:37.4]} 12. h4 {[%clk
0:02:18.8]} 12... h5 {[%clk 0:02:36.3]} 13. Ng5 {[%clk 0:02:10.1]} 13... Qb6
{[%clk 0:02:25.2]} 14. Bc4 {[%clk 0:02:03]} 14... cxd4 {[%clk 0:02:21.5]} 15.
Qxd4 {[%clk 0:02:03]} 15... Qxd4 {[%clk 0:02:18.7]} 16. Rxd4 {[%clk 0:02:03.9]}
16... Ne5 {[%clk 0:02:18.4]} 17. Be2 {[%clk 0:01:56.5]} 17... Bf5 {[%clk
0:01:59]} 18. Rxd6 {[%clk 0:01:49.8]} 18... Nh7 {[%clk 0:01:51.1]} 19. Nxh7
{[%clk 0:01:43.8]} 19... Kxh7 {[%clk 0:01:52]} 20. f4 {[%clk 0:01:39.2]} 20...
Nc6 {[%clk 0:01:47.3]} 21. Bf3 {[%clk 0:01:36.8]} 21... Rac8 {[%clk 0:01:40.3]}
22. Bxc6 {[%clk 0:01:31.1]} 22... Rxc6 {[%clk 0:01:41.2]} 23. Rxc6 {[%clk
0:01:31.3]} 23... bxc6 {[%clk 0:01:41.5]} 24. Re1 {[%clk 0:01:31.7]} 24... Be6
{[%clk 0:01:38.3]} 25. Ne4 {[%clk 0:01:27.5]} 25... Kg7 {[%clk 0:01:37.2]} 26.
Nc5 {[%clk 0:01:22.5]} 26... Bd5 {[%clk 0:01:35.8]} 27. g3 {[%clk 0:01:22.4]}
27... Rb8 {[%clk 0:01:27.2]} 28. b3 {[%clk 0:01:22.3]} 28... Rb5 {[%clk
0:01:25.1]} 29. Nd3 {[%clk 0:01:12.3]} 29... Be6 {[%clk 0:01:23.3]} 30. c4
{[%clk 0:01:08.1]} 30... Rb8 {[%clk 0:01:11.5]} 31. Nc5 {[%clk 0:01:07.9]} 31...
Kf6 {[%clk 0:01:11]} 32. Rxe6+ {[%clk 0:01:00.3]} 32... fxe6 {[%clk 0:01:11.9]}
33. Nd7+ {[%clk 0:01:00.9]} 33... Kf5 {[%clk 0:01:10.8]} 34. Nxb8 {[%clk
0:01:01]} 34... Kg4 {[%clk 0:01:11.7]} 35. Nxc6 {[%clk 0:01:01.6]} 35... Kxg3
{[%clk 0:01:12.6]} 36. Ne5 {[%clk 0:00:59.6]} 36... Kxh4 {[%clk 0:01:11.4]} 37.
Nxg6+ {[%clk 0:00:58.5]} 37... Kg4 {[%clk 0:01:11.8]} 38. c5 {[%clk 0:00:59.1]}
38... Kf5 {[%clk 0:01:11.1]} 39. Nh4+ {[%clk 0:00:58.9]} 39... Kf6 {[%clk
0:01:10.2]} 1-0

[Event "*** Titled Tuesday Blitz"]
[Site "Chess.com"]
[Date "2020.05.05"]
[Round "10"]
[White "oneshot007"]
[Black "RitvarsReimanis"]
[Result "0-1"]
[WhiteElo "2403"]
[BlackElo "2539"]
[TimeControl "180+1"]
[EndTime "11:57:28 PDT"]
[Termination "RitvarsReimanis won by resignation"]

1. e4 {[%clk 0:03:00.9]} 1... c5 {[%clk 0:02:59.2]} 2. Nf3 {[%clk 0:03:00.8]}
2... Nc6 {[%clk 0:02:59.4]} 3. Nc3 {[%clk 0:03:00.2]} 3... Nf6 {[%clk
0:02:59.2]} 4. d4 {[%clk 0:03:00]} 4... cxd4 {[%clk 0:02:58.6]} 5. Nxd4 {[%clk
0:03:00.9]} 5... e5 {[%clk 0:02:59.1]} 6. Ndb5 {[%clk 0:03:01.1]} 6... d6 {[%clk
0:02:57.3]} 7. Nd5 {[%clk 0:03:01.3]} 7... Nxd5 {[%clk 0:02:55.8]} 8. exd5
{[%clk 0:03:02.2]} 8... Ne7 {[%clk 0:02:55]} 9. c4 {[%clk 0:03:02.1]} 9... Ng6
{[%clk 0:02:55]} 10. Qa4 {[%clk 0:02:58.7]} 10... Bd7 {[%clk 0:02:54.5]} 11. Qb4
{[%clk 0:02:58.7]} 11... Qb8 {[%clk 0:02:53.7]} 12. h4 {[%clk 0:02:58]} 12... a6
{[%clk 0:02:49.6]} 13. Nc3 {[%clk 0:02:56.6]} 13... a5 {[%clk 0:02:49.1]} 14.
Qb3 {[%clk 0:02:51.5]} 14... a4 {[%clk 0:02:40.8]} 15. Qc2 {[%clk 0:02:37.8]}
15... Be7 {[%clk 0:02:39.1]} 16. h5 {[%clk 0:02:37.5]} 16... Nh4 {[%clk
0:02:34.1]} 17. Ne4 {[%clk 0:01:55.7]} 17... Nf5 {[%clk 0:02:26.5]} 18. h6
{[%clk 0:01:36.7]} 18... g6 {[%clk 0:02:17.9]} 19. Qd1 {[%clk 0:01:34.2]} 19...
Qc7 {[%clk 0:02:10.3]} 20. Bd3 {[%clk 0:01:09.8]} 20... Nd4 {[%clk 0:01:58.6]}
21. g4 {[%clk 0:00:43.4]} 21... f5 {[%clk 0:01:51.2]} 22. gxf5 {[%clk
0:00:42.6]} 22... Bxf5 {[%clk 0:01:52.1]} 23. Nc3 {[%clk 0:00:29.6]} 23... O-O
{[%clk 0:01:47.7]} 24. Be3 {[%clk 0:00:27.2]} 24... Nf3+ {[%clk 0:01:36.7]} 25.
Ke2 {[%clk 0:00:18]} 25... Bg4 {[%clk 0:01:32.3]} 0-1

[Event "*** Titled Tuesday Blitz"]
[Site "Chess.com"]
[Date "2020.05.05"]
[Round "10"]
[White "annacramling"]
[Black "manuellarrea"]
[Result "0-1"]
[WhiteElo "1930"]
[BlackElo "2187"]
[TimeControl "180+1"]
[EndTime "11:57:28 PDT"]
[Termination "manuellarrea won by checkmate"]

1. d4 {[%clk 0:03:00.9]} 1... Nf6 {[%clk 0:02:57]} 2. c4 {[%clk 0:03:01.3]} 2...
e6 {[%clk 0:02:56.1]} 3. Nc3 {[%clk 0:03:01.9]} 3... d5 {[%clk 0:02:55.5]} 4.
cxd5 {[%clk 0:03:01]} 4... exd5 {[%clk 0:02:54.6]} 5. Bg5 {[%clk 0:03:01.4]}
5... c6 {[%clk 0:02:54.2]} 6. e3 {[%clk 0:03:01.8]} 6... Bd6 {[%clk 0:02:54.1]}
7. Bd3 {[%clk 0:02:59]} 7... Nbd7 {[%clk 0:02:54.1]} 8. Qd2 {[%clk 0:02:45]}
8... Nf8 {[%clk 0:02:53.8]} 9. f3 {[%clk 0:02:39.2]} 9... Ng6 {[%clk 0:02:53.1]}
10. Nge2 {[%clk 0:02:34]} 10... h6 {[%clk 0:02:52.4]} 11. Bxg6 {[%clk 0:02:26]}
11... hxg5 {[%clk 0:02:49]} 12. Bd3 {[%clk 0:02:19.5]} 12... Rxh2 {[%clk
0:02:22.2]} 13. Rxh2 {[%clk 0:02:02.6]} 13... Bxh2 {[%clk 0:02:21.7]} 14. g3
{[%clk 0:01:20.5]} 14... Qd6 {[%clk 0:02:20.8]} 15. Kf2 {[%clk 0:00:57.9]} 15...
Nh5 {[%clk 0:02:19.5]} 16. f4 {[%clk 0:00:56.9]} 16... gxf4 {[%clk 0:02:08]} 17.
gxf4 {[%clk 0:00:39]} 17... Qf6 {[%clk 0:01:58.4]} 18. Kg2 {[%clk 0:00:24.8]}
18... Qh4 {[%clk 0:01:57]} 19. Rh1 {[%clk 0:00:19.1]} 19... Qh3+ {[%clk
0:01:40.1]} 20. Kf2 {[%clk 0:00:18.5]} 20... Bg4 {[%clk 0:01:20]} 21. Qe1 {[%clk
0:00:10.9]} 21... Qf3# {[%clk 0:01:14.1]} 0-1

[Event "*** Titled Tuesday Blitz"]
[Site "Chess.com"]
[Date "2020.05.05"]
[Round "10"]
[White "djano"]
[Black "svilson23"]
[Result "1-0"]
[WhiteElo "2424"]
[BlackElo "2255"]
[TimeControl "180+1"]
[EndTime "11:57:35 PDT"]
[Termination "djano won by resignation"]

1. d4 {[%clk 0:03:00.9]} 1... d5 {[%clk 0:02:58.6]} 2. Bf4 {[%clk 0:02:58.9]}
2... e6 {[%clk 0:02:56.9]} 3. Nd2 {[%clk 0:02:56.3]} 3... Bd6 {[%clk 0:02:57.4]}
4. e3 {[%clk 0:02:56.3]} 4... Nd7 {[%clk 0:02:56]} 5. Ngf3 {[%clk 0:02:56.2]}
5... Bxf4 {[%clk 0:02:53.6]} 6. exf4 {[%clk 0:02:57.1]} 6... Ngf6 {[%clk
0:02:45]} 7. Bd3 {[%clk 0:02:57]} 7... O-O {[%clk 0:02:44.8]} 8. c3 {[%clk
0:02:56.4]} 8... c5 {[%clk 0:02:44.8]} 9. O-O {[%clk 0:02:54.6]} 9... c4 {[%clk
0:02:39.5]} 10. Bc2 {[%clk 0:02:53]} 10... b5 {[%clk 0:02:36.3]} 11. Re1 {[%clk
0:02:48.3]} 11... Nb6 {[%clk 0:02:31.9]} 12. Ne5 {[%clk 0:02:48.4]} 12... a5
{[%clk 0:02:26.3]} 13. Qf3 {[%clk 0:02:46.6]} 13... b4 {[%clk 0:02:20.7]} 14.
Qh3 {[%clk 0:02:45.9]} 14... g6 {[%clk 0:01:49.1]} 15. Qh4 {[%clk 0:02:31.5]}
15... Bd7 {[%clk 0:01:35.3]} 16. Ndf3 {[%clk 0:02:27.6]} 16... Kg7 {[%clk
0:01:07.5]} 17. g4 {[%clk 0:02:13]} 17... h5 {[%clk 0:00:32.6]} 18. h3 {[%clk
0:02:03.6]} 18... hxg4 {[%clk 0:00:25.1]} 19. hxg4 {[%clk 0:02:04.5]} 19... Rh8
{[%clk 0:00:25]} 20. Qg3 {[%clk 0:02:04.8]} 20... Qg8 {[%clk 0:00:19.8]} 21. Ng5
{[%clk 0:02:04.7]} 21... Be8 {[%clk 0:00:17.9]} 22. f5 {[%clk 0:02:05.1]} 22...
Nbd7 {[%clk 0:00:16.4]} 23. fxe6 {[%clk 0:02:00.9]} 23... fxe6 {[%clk
0:00:14.3]} 24. Nef3 {[%clk 0:01:51.6]} 24... Ra6 {[%clk 0:00:12.7]} 25. Re2
{[%clk 0:01:49]} 25... Bf7 {[%clk 0:00:12.3]} 26. Rae1 {[%clk 0:01:48.5]} 26...
Qb8 {[%clk 0:00:11.7]} 27. Nxf7 {[%clk 0:01:45.4]} 27... Qxg3+ {[%clk
0:00:07.5]} 28. fxg3 {[%clk 0:01:46.3]} 28... Kxf7 {[%clk 0:00:06.4]} 29. Ng5+
{[%clk 0:01:46.8]} 29... Ke7 {[%clk 0:00:04.9]} 30. Rxe6+ {[%clk 0:01:46]} 30...
Rxe6 {[%clk 0:00:05.3]} 31. Rxe6+ {[%clk 0:01:46.3]} 31... Kf8 {[%clk
0:00:04.9]} 32. Bxg6 {[%clk 0:01:42.9]} 1-0

[Event "*** Titled Tuesday Blitz"]
[Site "Chess.com"]
[Date "2020.05.05"]
[Round "10"]
[White "FROGGY64"]
[Black "tgpgoat"]
[Result "1-0"]
[WhiteElo "2442"]
[BlackElo "2116"]
[TimeControl "180+1"]
[EndTime "11:57:36 PDT"]
[Termination "FROGGY64 won by resignation"]

1. d4 {[%clk 0:03:00.9]} 1... Nf6 {[%clk 0:02:59.8]} 2. c4 {[%clk 0:02:58.4]}
2... c5 {[%clk 0:02:59.4]} 3. d5 {[%clk 0:02:58.3]} 3... b5 {[%clk 0:02:59.5]}
4. Qc2 {[%clk 0:02:58.5]} 4... bxc4 {[%clk 0:02:58.9]} 5. e4 {[%clk 0:02:58.9]}
5... d6 {[%clk 0:02:58.6]} 6. Bxc4 {[%clk 0:02:59.3]} 6... Ba6 {[%clk 0:02:59]}
7. b3 {[%clk 0:02:58.4]} 7... Bxc4 {[%clk 0:02:58]} 8. bxc4 {[%clk 0:02:58.5]}
8... g6 {[%clk 0:02:58.8]} 9. Nc3 {[%clk 0:02:57.5]} 9... Bg7 {[%clk 0:02:58.6]}
10. Bd2 {[%clk 0:02:53.5]} 10... O-O {[%clk 0:02:56.2]} 11. Nf3 {[%clk
0:02:53.5]} 11... Nbd7 {[%clk 0:02:56]} 12. O-O {[%clk 0:02:53.4]} 12... Nb6
{[%clk 0:02:55.7]} 13. Qd3 {[%clk 0:02:50.9]} 13... Nfd7 {[%clk 0:02:54.8]} 14.
Rab1 {[%clk 0:02:48.3]} 14... Qc8 {[%clk 0:02:50.9]} 15. Nb5 {[%clk 0:02:44.1]}
15... a6 {[%clk 0:02:47.2]} 16. Nc3 {[%clk 0:02:43.1]} 16... Qc7 {[%clk
0:02:45.7]} 17. a4 {[%clk 0:02:40.9]} 17... Ne5 {[%clk 0:02:43.7]} 18. Nxe5
{[%clk 0:02:39.8]} 18... Bxe5 {[%clk 0:02:44.6]} 19. a5 {[%clk 0:02:39.8]} 19...
Nd7 {[%clk 0:02:44.1]} 20. f4 {[%clk 0:02:38.9]} 20... Bd4+ {[%clk 0:02:43.2]}
21. Kh1 {[%clk 0:02:37.7]} 21... Qxa5 {[%clk 0:02:39.7]} 22. Ne2 {[%clk
0:02:37.5]} 22... Qc7 {[%clk 0:02:35.3]} 23. Nxd4 {[%clk 0:02:37.5]} 23... cxd4
{[%clk 0:02:35]} 24. Qxd4 {[%clk 0:02:37.8]} 24... Qc5 {[%clk 0:02:34.6]} 25.
Qd3 {[%clk 0:02:36.7]} 25... Rfc8 {[%clk 0:02:33.3]} 26. Rfc1 {[%clk 0:02:36.5]}
26... a5 {[%clk 0:02:30.7]} 27. Be3 {[%clk 0:02:36.1]} 27... Qc7 {[%clk
0:02:29.7]} 28. Bd4 {[%clk 0:02:35.7]} 28... a4 {[%clk 0:02:27]} 29. Ra1 {[%clk
0:02:14]} 29... Qb7 {[%clk 0:02:21.7]} 30. e5 {[%clk 0:02:10.7]} 30... dxe5
{[%clk 0:02:18.7]} 31. fxe5 {[%clk 0:02:10.1]} 31... Nf8 {[%clk 0:02:08.8]} 32.
Qf3 {[%clk 0:02:05.2]} 32... Qb4 {[%clk 0:02:01.5]} 33. Rf1 {[%clk 0:01:57.4]}
33... Qxc4 {[%clk 0:01:46.9]} 34. Qxf7+ {[%clk 0:01:56.6]} 34... Kh8 {[%clk
0:01:46.5]} 35. Rad1 {[%clk 0:01:54.7]} 35... e6 {[%clk 0:01:41.6]} 36. d6
{[%clk 0:01:50.2]} 36... Qc6 {[%clk 0:01:38.8]} 37. Qf6+ {[%clk 0:01:39.9]}
37... Kg8 {[%clk 0:01:37.4]} 38. Be3 {[%clk 0:01:38.8]} 38... Qd7 {[%clk
0:01:35.5]} 39. Bh6 {[%clk 0:01:38.8]} 39... a3 {[%clk 0:01:32]} 40. Qe7 {[%clk
0:01:37.2]} 40... Qxe7 {[%clk 0:01:12.1]} 41. dxe7 {[%clk 0:01:34.8]} 41... Nd7
{[%clk 0:01:12.4]} 42. Rxd7 {[%clk 0:01:33.5]} 42... a2 {[%clk 0:01:12]} 43.
Rdd1 {[%clk 0:01:27.4]} 43... Re8 {[%clk 0:01:03.2]} 44. Rf8+ {[%clk 0:01:25.5]}
44... Rxf8 {[%clk 0:01:02.7]} 45. exf8=Q+ {[%clk 0:01:25.5]} 45... Rxf8 {[%clk
0:01:03.5]} 46. Bxf8 {[%clk 0:01:25.3]} 46... Kxf8 {[%clk 0:01:04.4]} 47. Ra1
{[%clk 0:01:25]} 1-0